[Event "12th KIIT International 2019"]
[Site "Odisha"]
[Date "2019.06.07"]
[Round "10.16"]
[White "Varshini, V."]
[Black "Rakesh Kumar Jena"]
[Result "0-1"]
[ECO "B08"]
[WhiteElo "2189"]
[BlackElo "2411"]
[Annotator "ChessBase"]
[PlyCount "80"]
[EventDate "2019.05.31"]
[EventType "swiss"]
[EventCountry "IND"]
[SourceTitle "playchess.com"]
[Source "ChessBase"]
[SourceQuality "1"]
[TimeControl "5400+30"]

1. e4 {[%emt 0:00:00]} c6 {[%emt 0:03:23]} 2. d4 {[%emt 0:00:00]} g6 {[%emt 0:00:08]} 3. Nf3 {[%emt 0:00:06]} Bg7 {[%emt 0:00:06]} 4. Nc3 {[%emt 0:00:31]} d6 {[%emt 0:00:08]} 5. a4 {[%emt 0:01:19]} Nf6 {[%emt 0:00:20]} 6. Be2 {[%emt 0:00:49]} O-O {[%emt 0:00:09]} 7. O-O {[%emt 0:00:23]} Qc7 {[%emt 0:00:07]} 8. h3 {[%emt 0:00:27]} e5 {[%emt 0:00:11]} 9. Be3 {[%emt 0:03:37]} exd4 {[%emt 0:01:41]} 10. Nxd4 {[%emt 0:00:37]} Re8 {[%emt 0:00:13]} 11. Bd3 {[%emt 0:02:55]} Nbd7 {[%emt 0:00:33]} 12. Nde2 {[%emt 0:06:01]} b6 {[%emt 0:03:30]} 13. Qd2 {[%emt 0:02:47]} Bb7 {[%emt 0:08:59]} 14. Bh6 {[%emt 0:04:07]} Bxh6 {[%emt 0:12:19]} 15. Qxh6 {[%emt 0:00:09]} c5 {[%emt 0:00:14]} 16. Ng3 {[%emt 0:01:58]} c4 {[%emt 0:01:20]} 17. Nb5 {[%emt 0:16:56]} Qc5 {[%emt 0:05:13]} 18. Bxc4 {[%emt 0:00:26]} Qxc4 {[%emt 0:00:21]} 19. Nxd6 {[%emt 0:00:05]} Qc5 {[%emt 0:00:13]} 20. Rfd1 {[%emt 0:24:52]} Re6 {[%emt 0:07:02]} 21. Nxb7 {[%emt 0:26:49]} Qc7 {[%emt 0:00:12]} 22. Nf5 {[%emt 0:01:57]} gxf5 {[%emt 0:00:18]} 23. exf5 {[%emt 0:00:35]} Rc6 {[%emt 0:02:12]} 24. Ra3 {[%emt 0:01:03]} Kh8 {[%emt 0:22:02]} 25. Rg3 {[%emt 0:00:23]} Rg8 {[%emt 0:00:11]} 26. Rxg8+ {[%emt 0:01:08]} Nxg8 {[%emt 0:00:05]} 27. Qd2 {[%emt 0:00:16]} Ne5 {[%emt 0:03:45]} 28. Qd4 {[%emt 0:02:36]} f6 {[%emt 0:00:49]} 29. f4 {[%emt 0:00:57]} Nf3+ {[%emt 0:01:48]} 30. gxf3 {[%emt 0:00:03]} Rxc2 {[%emt 0:00:21]} 31. Rd2 {[%emt 0:00:57]} Rxd2 {[%emt 0:00:09]} 32. Qxd2 {[%emt 0:00:02]} Qxb7 {[%emt 0:00:01]} 33. Kf2 {[%emt 0:00:21]} Qc6 {[%emt 0:00:45]} 34. Qd4 {[%emt 0:00:21]} Qc2+ {[%emt 0:00:32]} 35. Ke3 {[%emt 0:00:43]} Qxf5 {[%emt 0:00:07]} 36. h4 {[%emt 0:00:07]} Qh5 {[%emt 0:00:35]} 37. Qd7 {[%emt 0:00:14]} Qc5+ {[%emt 0:01:43]} 38. Ke4 {[%emt 0:00:36]} Qe7+ {[%emt 0:00:15]} 39. Qxe7 {[%emt 0:00:27]} Nxe7 {[%emt 0:00:02]} 40. Kd4 {[%emt 0:00:17]} Nf5+ {[%emt 0:00:18]} 0-1

[Event "12th KIIT International 2019"]
[Site "Odisha"]
[Date "2019.06.07"]
[Round "10.17"]
[White "Matta, Vinay Kumar"]
[Black "Manik, Mikulas"]
[Result "1/2-1/2"]
[ECO "C67"]
[WhiteElo "2181"]
[BlackElo "2399"]
[Annotator "NA RC"]
[PlyCount "50"]
[EventDate "2019.05.31"]
[EventType "swiss"]
[EventCountry "IND"]
[SourceTitle "playchess.com"]
[Source "ChessBase"]
[SourceQuality "1"]
[TimeControl "5400+30"]

1. e4 {[%emt 0:01:33]} e5 {[%emt 0:00:00]} 2. Nf3 {[%emt 0:00:04]} Nc6 {[%emt 0:00:00]} 3. Bb5 {[%emt 0:00:03]} Nf6 {[%emt 0:00:00]} 4. O-O {[%emt 0:00:07]} Nxe4 {[%emt 0:00:00]} 5. d4 {[%emt 0:00:06]} Nd6 {[%emt 0:00:12]} 6. Bxc6 {[%emt 0:00:06]} dxc6 {[%emt 0:00:08]} 7. dxe5 {[%emt 0:00:05]} Nf5 {[%emt 0:00:16]} 8. Qxd8+ {[%emt 0:00:10]} Kxd8 {[%emt 0:00:07]} 9. Rd1+ {[%emt 0:00:03]} Ke8 {[%emt 0:00:20]} 10. h3 {[%emt 0:00:08]} h5 {[%emt 0:01:06]} 11. Nc3 {[%emt 0:00:08]} Be7 {[%emt 1:33:21]} 12. Ne4 {[%emt 0:00:26]} Be6 {[%emt 0:00:00]} 13. b3 {[%emt 0:00:39]} Bd5 {[%emt 0:00:00]} 14. Ned2 {[%emt 0:00:20]} Rd8 {[%emt 0:00:00]} 15. Bb2 {[%emt 0:00:10]} h4 {[%emt 0:00:00]} 16. c4 {[%emt 0:00:23]} Be6 {[%emt 0:00:00]} 17. Ne4 {[%emt 0:00:10]} Rh5 {[%emt 0:00:00]} 18. Rxd8+ {[%emt 0:00:09]} Kxd8 {[%emt 0:00:00]} 19. Rd1+ {[%emt 0:00:10]} Kc8 {[%emt 0:00:00]} 20. Ne1 {[%emt 0:00:37]} Rh8 {[%emt 0:00:00]} 21. Nf3 {[%emt 0:00:16]} Rh5 {[%emt 0:00:00]} 22. Ne1 {[%emt 0:00:04]} Rh8 {[%emt 0:00:00]} 23. Nf3 {[%emt 0:00:03]} Rh5 {[%emt 0:00:00]} 24. Ne1 {[%emt 1:36:00]} Rh8 {[%emt 0:06:30]} 25. Nf3 {[%emt 0:00:30]} Rh5 1/2-1/2

[Event "12th KIIT International 2019"]
[Site "Odisha"]
[Date "2019.06.07"]
[Round "10.18"]
[White "Gusain, Himal"]
[Black "Rohit S"]
[Result "1-0"]
[ECO "B10"]
[WhiteElo "2404"]
[BlackElo "1995"]
[Annotator "ChessBase"]
[PlyCount "49"]
[EventDate "2019.05.31"]
[EventType "swiss"]
[EventCountry "IND"]
[SourceTitle "playchess.com"]
[Source "ChessBase"]
[SourceQuality "1"]
[TimeControl "5400+30"]

1. Nf3 {[%emt 0:11:34]} c5 {[%emt 0:00:00]} 2. e3 {[%emt 0:00:11]} Nc6 {[%emt 0:01:48]} 3. c4 {[%emt 0:00:35]} e6 {[%emt 0:02:20]} 4. Nc3 {[%emt 0:00:13]} Nf6 {[%emt 0:01:20]} 5. d4 {[%emt 0:01:56]} d5 {[%emt 0:13:04]} 6. cxd5 {[%emt 0:00:52]} Nxd5 {[%emt 0:00:23]} 7. Bb5 {[%emt 0:00:08]} Nxc3 {[%emt 0:02:10]} 8. bxc3 {[%emt 0:00:08]} Bd7 {[%emt 0:01:05]} 9. O-O {[%emt 0:00:17]} cxd4 {[%emt 0:10:29]} 10. exd4 {[%emt 0:01:54]} Bd6 {[%emt 0:07:14]} 11. Bd3 {[%emt 0:00:33]} Qc7 {[%emt 0:03:19]} 12. Qe2 {[%emt 0:03:06]} Ne7 {[%emt 0:02:18]} 13. c4 {[%emt 0:00:37]} Ng6 {[%emt 0:01:14]} 14. g3 {[%emt 0:00:35]} O-O {[%emt 0:02:13]} 15. h4 {[%emt 0:00:11]} Rfe8 {[%emt 0:03:03]} 16. h5 {[%emt 0:00:26]} Nf8 {[%emt 0:00:31]} 17. h6 {[%emt 0:00:25]} g6 {[%emt 0:00:58]} 18. c5 {[%emt 0:00:22]} Be7 {[%emt 0:00:16]} 19. Bf4 {[%emt 0:00:09]} Qd8 {[%emt 0:01:06]} 20. Ne5 {[%emt 0:00:51]} Bg5 {[%emt 0:05:01]} 21. Qe3 {[%emt 0:00:42]} Bxf4 {[%emt 0:00:10]} 22. Qxf4 {[%emt 0:00:06]} f6 {[%emt 0:00:07]} 23. Ng4 {[%emt 0:00:37]} Kf7 {[%emt 0:00:46]} 24. Rab1 {[%emt 0:00:45]} Rb8 {[%emt 0:02:16]} 25. Be4 {[%emt 0:01:02]} 1-0